bitfinex/quotes_SOLUSD_20230402
["timestamp","ask_amount","ask_price","bid_price","bid_amount"]
[1680459136559,10.0,20.635,20.623,20.0]
[1680459139657,10.0,20.635,20.623,10.0]
[1680459139858,10.0,20.635,20.624,20.0]
[1680459140449,10.0,20.635,20.623,10.0]
[1680459140659,10.0,20.635,20.624,20.0]
[1680459143459,10.0,20.635,20.623,10.0]
[1680459143661,10.0,20.637,20.624,20.0]
[1680459143860,10.0,20.635,20.624,20.0]
[1680459145966,10.0,20.635,20.623,10.0]
[1680459146275,10.0,20.635,20.625,10.0]
[1680459146563,10.0,20.635,20.623,10.0]
[1680459146764,10.0,20.635,20.624,20.0]
[1680459147464,10.0,20.635,20.623,10.0]
[1680459147665,10.0,20.635,20.624,20.0]
[1680459149467,10.0,20.635,20.622,20.0]
[1680459149661,10.0,20.635,20.621,20.0]
[1680459149854,10.0,20.633,20.617,22.23]
[1680459150054,17.0,20.632,20.615,118.948]
[1680459150259,10.0,20.631,20.615,118.948]
[1680459150455,10.0,20.629,20.615,118.948]
[1680459150861,10.0,20.627,20.615,118.948]
[1680459162568,10.0,20.625,20.615,118.948]
[1680459164280,10.0,20.627,20.615,118.948]
[1680459164471,10.0,20.625,20.615,118.948]
[1680459166586,10.0,20.627,20.615,118.948]
[1680459166779,10.0,20.625,20.615,118.948]
[1680459167573,9.5,20.625,20.615,118.948]
[1680459167763,9.5,20.625,20.616,10.0]
[1680459168266,17.0,20.626,20.615,118.948]
[1680459176177,10.0,20.629,20.615,118.948]
[1680459176178,10.0,20.627,20.615,118.948]
[1680459176382,10.0,20.625,20.615,118.948]
[1680459179395,17.0,20.626,20.615,118.948]
[1680459193588,10.0,20.627,20.615,118.948]
[1680459193783,10.0,20.625,20.615,118.948]
[1680459193980,17.0,20.624,20.615,118.948]
[1680459198496,10.0,20.625,20.615,118.948]
[1680459198690,17.0,20.624,20.615,118.948]
[1680459202894,10.0,20.625,20.615,118.948]
[1680459203093,17.0,20.624,20.615,118.948]
[1680459203810,17.0,20.626,20.615,118.948]
[1680459210496,10.0,20.625,20.615,118.948]
[1680459210698,10.0,20.623,20.615,118.948]
[1680459211000,10.0,20.621,20.615,118.948]
[1680459213014,10.0,20.623,20.615,118.948]
[1680459213209,10.0,20.621,20.615,118.948]
[1680459214016,10.0,20.623,20.615,118.948]
[1680459214218,10.0,20.621,20.615,118.948]
[1680459215718,10.0,20.623,20.615,118.948]
[1680459216018,10.0,20.621,20.615,118.948]
[1680459216518,10.0,20.623,20.615,118.948]
[1680459216707,17.0,20.622,20.615,118.948]
[1680459230539,10.0,20.623,20.615,118.948]
[1680459230855,10.0,20.621,20.615,118.948]
[1680459232651,17.0,20.622,20.615,118.948]
[1680459232831,17.0,20.624,20.615,118.948]
[1680459241064,10.0,20.625,20.615,118.948]
[1680459241255,10.0,20.623,20.615,118.948]
[1680459241863,17.0,20.624,20.615,118.948]
[1680459243057,10.0,20.625,20.615,118.948]
[1680459243270,10.0,20.623,20.615,118.948]
[1680459243558,17.0,20.624,20.615,118.948]
[1680459246846,10.0,20.625,20.615,118.948]
[1680459247043,10.0,20.623,20.615,118.948]
[1680459247553,10.0,20.625,20.615,118.948]
[1680459247855,17.0,20.624,20.615,118.948]
[1680459249349,10.0,20.625,20.615,118.948]
[1680459249550,10.0,20.623,20.615,118.948]
[1680459250049,10.0,20.625,20.615,118.948]
[1680459250358,17.0,20.624,20.615,118.948]
[1680459251767,10.0,20.625,20.615,118.948]
[1680459252063,17.0,20.624,20.615,118.948]
[1680459253646,10.0,20.625,20.615,118.948]
[1680459253847,17.0,20.626,20.615,118.948]
[1680459254249,10.0,20.627,20.615,118.948]
[1680459254447,17.0,20.626,20.615,118.948]
[1680459254649,32.39,20.64,20.615,118.948]
[1680459254967,24.31824023,20.635,20.621,10.0]
[1680459256352,10.0,20.632,20.621,10.0]
[1680459256553,10.0,20.632,20.62,22.39]
[1680459269579,24.31824023,20.635,20.62,22.39]
[1680459271281,17.0,20.633,20.62,22.39]
[1680459271474,10.0,20.632,20.62,22.39]
[1680459271677,10.0,20.63,20.62,22.39]
[1680459280396,10.0,20.63,20.62,22.38]
[1680459280599,10.0,20.63,20.616,10.0]
[1680459280794,10.0,20.628,20.616,10.0]
[1680459283998,10.0,20.626,20.615,118.948]
[1680459284183,17.0,20.625,20.615,118.948]
[1680459284992,10.0,20.626,20.615,118.948]
[1680459285304,17.0,20.625,20.615,118.948]
[1680459286296,10.0,20.626,20.615,118.948]
[1680459286497,17.0,20.625,20.615,118.948]
[1680459288205,17.0,20.627,20.615,118.948]
[1680459291207,17.0,20.627,20.616,10.0]
[1680459291405,10.0,20.628,20.616,10.0]
[1680459291604,17.0,20.627,20.616,10.0]
[1680459294005,17.0,20.627,20.615,118.948]
[1680459294797,17.0,20.629,20.616,10.0]
[1680459295103,17.0,20.629,20.62,22.38]
[1680459298213,174.129,20.642,20.62,22.38]
[1680459298402,10.0,20.63,20.62,22.38]
[1680459299604,17.0,20.631,20.62,22.38]
[1680459302208,10.0,20.63,20.62,22.38]
[1680459302401,17.0,20.629,20.62,22.38]
[1680459304011,10.0,20.63,20.62,22.38]
[1680459307810,10.0,20.628,20.615,133.38793819]
[1680459318421,10.0,20.626,20.615,133.38793819]
[1680459318821,10.0,20.624,20.615,133.38793819]
[1680459320139,17.0,20.625,20.615,133.38793819]
[1680459322922,17.0,20.625,20.615,14.43993819]
[1680459323231,17.0,20.625,20.614,112.9822]
[1680459323435,17.0,20.625,20.615,20.0]
[1680459327426,10.0,20.624,20.615,20.0]
[1680459327625,10.0,20.624,20.612,20.0]
[1680459327827,10.0,20.622,20.612,20.0]
[1680459328041,10.0,20.62,20.612,20.0]
[1680459328344,17.0,20.619,20.612,20.0]
[1680459330739,10.0,20.62,20.612,20.0]
[1680459332623,17.0,20.621,20.612,20.0]
[1680459335839,17.0,20.621,20.611,20.0]
[1680459341545,17.0,20.621,20.608,115.6609]
[1680459343647,10.0,20.62,20.608,115.6609]
[1680459343833,10.0,20.618,20.608,115.6609]
[1680459344032,17.0,20.617,20.608,115.6609]
[1680459344945,14.5,20.617,20.609,10.0]
[1680459345456,14.5,20.617,20.608,115.6609]
[1680459347143,10.0,20.622,20.61,22.4]
[1680459347347,17.0,20.621,20.61,22.4]
[1680459347538,17.0,20.621,20.611,10.0]
[1680459347939,17.0,20.621,20.61,22.4]
[1680459357658,10.0,20.623,20.61,22.4]
[1680459357963,10.0,20.634,20.611,10.0]
[1680459358137,10.0,20.624,20.611,10.0]
[1680459362756,10.0,20.622,20.61,22.4]
[1680459363357,10.0,20.62,20.61,22.4]
[1680459364654,10.0,20.62,20.605,60.16934052]
[1680459364655,10.0,20.618,20.605,60.16934052]
[1680459364849,10.0,20.616,20.605,60.16934052]
[1680459365036,10.0,20.616,20.605,67.45056293]
[1680459365242,10.0,20.618,20.605,67.45056293]
[1680459365539,17.0,20.617,20.605,67.45056293]
[1680459365964,17.0,20.617,20.605,60.16934052]
[1680459367059,17.0,20.617,20.605,108.69423727]
[1680459367257,10.0,20.616,20.605,98.69423727]
[1680459367560,10.0,20.614,20.602,130.520243]
[1680459367864,17.0,20.613,20.604,20.0]
[1680459368045,10.0,20.612,20.604,20.0]
[1680459368246,17.0,20.611,20.604,20.0]
[1680459373359,10.0,20.612,20.604,20.0]
[1680459373546,17.0,20.611,20.604,20.0]
[1680459377064,10.0,20.612,20.604,20.0]
[1680459377253,10.0,20.61,20.604,20.0]
[1680459377456,10.0,20.612,20.604,20.0]
[1680459377656,17.0,20.611,20.604,20.0]
[1680459379361,10.0,20.614,20.604,20.0]
[1680459379665,17.0,20.613,20.604,20.0]
[1680459389776,10.0,20.614,20.604,20.0]
[1680459389960,17.0,20.612,20.604,20.0]
[1680459390362,10.0,20.612,20.604,20.0]
[1680459390576,17.0,20.611,20.604,20.0]
[1680459391880,17.0,20.613,20.604,20.0]
[1680459397366,10.0,20.62,20.604,20.0]
[1680459398872,10.0,20.617,20.604,20.0]
[1680459400382,10.0,20.615,20.604,20.0]
[1680459400682,17.0,20.614,20.604,20.0]
[1680459419605,10.0,20.62,20.604,20.0]
[1680459419803,10.0,20.62,20.604,65.01944675]
[1680459420793,17.0,20.618,20.604,20.0]
[1680459421106,10.0,20.617,20.604,20.0]
[1680459421295,17.0,20.616,20.604,20.0]
[1680459421498,10.0,20.615,20.604,20.0]
[1680459421807,10.0,20.613,20.604,20.0]
[1680459421988,10.0,20.611,20.604,20.0]
[1680459422388,17.0,20.61,20.604,20.0]
[1680459424296,17.0,20.61,20.601,20.0]
[1680459424604,17.0,20.61,20.598,180.50570975]
[1680459424605,17.0,20.61,20.598,64.42500975]
[1680459425112,17.0,20.61,20.598,19.405563]
[1680459425290,10.0,20.609,20.598,19.405563]
[1680459425487,17.0,20.608,20.598,19.405563]
[1680459425696,10.0,20.607,20.598,19.405563]
[1680459425997,17.0,20.606,20.598,19.405563]
[1680459426317,10.0,20.605,20.598,19.405563]
[1680459426497,17.0,20.604,20.598,19.405563]
[1680459426811,10.0,20.603,20.598,19.405563]
[1680459427007,10.0,20.601,20.598,19.405563]
[1680459427400,10.0,20.599,20.598,19.405563]
[1680459427702,27.0,20.599,20.598,19.405563]
[1680459428612,27.0,20.599,20.587,116.0185]
[1680459428911,10.0,20.597,20.588,20.0]
[1680459429094,10.0,20.595,20.588,20.0]
[1680459431811,10.0,20.597,20.588,20.0]
[1680459431997,10.0,20.595,20.588,20.0]
[1680459433912,10.0,20.597,20.588,20.0]
[1680459434105,10.0,20.595,20.588,20.0]
[1680459434306,10.0,20.595,20.587,116.0185]
[1680459435707,10.0,20.597,20.587,116.0185]
[1680459435908,10.0,20.595,20.587,116.0185]
[1680459436609,19.417279,20.616,20.588,10.0]
[1680459436910,10.0,20.599,20.59,28.04]
[1680459438413,10.0,20.597,20.59,28.04]
[1680459438613,17.0,20.596,20.59,28.04]
[1680459439814,17.0,20.596,20.587,116.0185]
[1680459442115,10.0,20.597,20.587,116.0185]
[1680459442421,10.0,20.595,20.587,116.0185]
[1680459444016,17.0,20.596,20.585,27.0]
[1680459447126,10.0,20.595,20.585,27.0]
[1680459447327,10.0,20.593,20.58,28.0]
[1680459447531,10.0,20.593,20.583,10.0]
[1680459447718,10.0,20.591,20.584,20.0]
[1680459447917,17.0,20.59,20.584,20.0]
[1680459448312,17.0,20.59,20.583,10.0]
[1680459448514,17.0,20.59,20.584,20.0]
[1680459448717,17.0,20.592,20.584,20.0]
[1680459449325,17.0,20.592,20.582,20.0]
[1680459453030,17.0,20.592,20.58,28.0]
[1680459453216,10.0,20.591,20.58,28.0]
[1680459453415,10.0,20.589,20.58,28.0]
[1680459453616,17.0,20.588,20.58,28.0]
[1680459454826,17.0,20.588,20.572,45.01898776]
[1680459455132,17.0,20.588,20.572,52.30021017]
[1680459455831,10.0,20.593,20.576,168.05981017]
[1680459456133,10.0,20.593,20.581,10.0]
[1680459456318,10.0,20.593,20.583,10.0]
[1680459456515,10.0,20.593,20.584,20.0]
[1680459457119,17.0,20.592,20.583,20.0]
[1680459457332,10.0,20.593,20.583,20.0]
[1680459457634,10.0,20.591,20.583,20.0]
[1680459457818,17.0,20.59,20.583,20.0]
[1680459458531,17.0,20.59,20.582,20.0]
[1680459469838,13.396,20.608,20.583,7.28122241]
[1680459470058,13.396,20.608,20.585,10.0]
[1680459470345,20.67722241,20.608,20.585,10.0]
[1680459471342,10.0,20.599,20.585,10.0]
[1680459471641,10.0,20.597,20.584,10.0]
[1680459471840,17.0,20.596,20.585,20.0]
[1680459472042,10.0,20.595,20.585,20.0]
[1680459472350,10.0,20.593,20.585,20.0]
[1680459472647,10.0,20.591,20.582,20.0]
[1680459472845,17.0,20.59,20.582,20.0]
[1680459474845,10.0,20.591,20.582,20.0]
[1680459475148,10.0,20.589,20.582,20.0]
[1680459475331,17.0,20.588,20.582,20.0]
[1680459477832,10.0,20.591,20.582,20.0]
[1680459477833,10.0,20.589,20.582,20.0]
[1680459478152,17.0,20.588,20.582,20.0]
[1680459479858,17.0,20.588,20.582,17.5]
[1680459480035,10.0,20.589,20.582,17.5]
[1680459480358,10.0,20.587,20.582,17.5]
[1680459480734,17.0,20.588,20.582,17.5]
[1680459481245,10.0,20.591,20.582,17.5]
[1680459481951,17.0,20.59,20.582,17.5]
[1680459483057,10.0,20.591,20.582,17.5]
[1680459483655,10.0,20.593,20.582,17.5]
[1680459485861,10.0,20.598,20.582,17.5]
[1680459486154,10.0,20.593,20.582,17.5]
[1680459486358,10.0,20.593,20.582,24.78122241]
[1680459486561,10.0,20.598,20.582,24.78122241]
[1680459486744,10.0,20.598,20.583,10.0]
[1680459486944,10.0,20.598,20.585,10.0]
[1680459487945,10.0,20.596,20.585,10.0]
[1680459489473,17.0,20.597,20.585,10.0]
[1680459490652,17.0,20.597,20.584,37.28122241]
[1680459492663,17.0,20.597,20.584,27.28122241]
[1680459494465,14.32986134,20.599,20.584,27.28122241]
[1680459494647,36.70652641,20.607,20.585,10.0]
[1680459494843,17.0,20.6,20.585,10.0]
[1680459495846,10.0,20.601,20.585,61.40588776]
[1680459496040,17.0,20.6,20.585,68.68711017]
[1680459496263,17.0,20.6,20.587,10.0]
[1680459497065,10.0,20.6,20.587,10.0]
[1680459497367,17.0,20.599,20.587,10.0]
[1680459497562,10.0,20.6,20.587,10.0]
[1680459497746,10.0,20.602,20.591,10.0]
[1680459498762,10.0,20.602,20.59,27.83]
[1680459499149,19.425304,20.607,20.591,10.0]
[1680459499465,19.425304,20.607,20.593,10.0]
[1680459499760,19.425304,20.607,20.595,10.0]
[1680459500155,19.425304,20.607,20.595,17.28122241]
[1680459500355,10.0,20.605,20.595,17.28122241]
[1680459500557,17.0,20.606,20.595,17.28122241]
[1680459502662,17.0,20.606,20.595,7.28122241]
[1680459502864,20.396,20.608,20.595,7.28122241]
[1680459509464,10.0,20.607,20.595,7.28122241]
[1680459509665,10.0,20.605,20.595,7.28122241]
[1680459511078,10.0,20.607,20.595,7.28122241]
[1680459512882,20.396,20.608,20.595,7.28122241]
[1680459519682,10.0,20.607,20.595,7.28122241]
[1680459523970,10.0,20.605,20.595,7.28122241]
[1680459529185,17.0,20.606,20.595,7.28122241]
[1680459532372,20.396,20.608,20.595,7.28122241]
[1680459533387,10.0,20.607,20.595,7.28122241]
[1680459533684,10.0,20.605,20.595,7.28122241]
[1680459537491,10.0,20.607,20.595,7.28122241]
[1680459537692,10.0,20.605,20.595,7.28122241]
[1680459538783,17.0,20.604,20.595,7.28122241]
[1680459538990,10.0,20.603,20.595,7.28122241]
[1680459539185,10.0,20.601,20.595,7.28122241]
[1680459540893,10.0,20.603,20.595,7.28122241]
[1680459541073,10.0,20.601,20.595,7.28122241]
[1680459542495,17.0,20.604,20.595,7.28122241]
[1680459547193,17.0,20.604,20.594,20.0]
[1680459547493,17.0,20.604,20.595,20.0]
[1680459548283,17.0,20.604,20.594,20.0]
[1680459562515,10.0,20.605,20.594,71.40588776]
[1680459562702,17.0,20.604,20.594,78.68711017]
[1680459565104,10.0,20.605,20.594,78.68711017]
[1680459565304,10.0,20.603,20.594,78.68711017]
[1680459567017,17.0,20.604,20.594,78.68711017]
[1680459572022,10.0,20.605,20.594,78.68711017]
[1680459572213,10.0,20.603,20.594,78.68711017]
[1680459573015,10.0,20.605,20.594,78.68711017]
[1680459573308,10.0,20.603,20.594,78.68711017]
[1680459576033,10.0,20.603,20.594,20.0]
[1680459576219,17.0,20.602,20.593,20.0]
[1680459576528,10.0,20.601,20.593,20.0]
[1680459576737,10.0,20.599,20.593,20.0]
[1680459577939,10.0,20.601,20.593,20.0]
[1680459578115,17.0,20.6,20.593,20.0]
[1680459579035,10.0,20.601,20.593,20.0]
[1680459579224,17.0,20.6,20.593,20.0]
[1680459582839,10.0,20.601,20.593,20.0]
[1680459583139,10.0,20.601,20.593,84.36457128]
[1680459583324,10.0,20.603,20.593,84.36457128]
[1680459583838,19.415065,20.619,20.593,84.36457128]
[1680459584020,10.0,20.603,20.593,84.36457128]
[1680459586240,17.0,20.604,20.593,84.36457128]
[1680459606058,17.0,20.604,20.593,77.08334887]
[1680459611561,17.0,20.604,20.593,84.36457128]
[1680459616366,19.415065,20.619,20.593,84.36457128]
[1680459616549,14.89337871,20.61,20.594,122.5252]
[1680459616861,14.89337871,20.61,20.596,10.0]
[1680459617448,14.89337871,20.61,20.596,17.28122241]
[1680459617853,14.89337871,20.61,20.596,7.28122241]
[1680459618054,10.0,20.609,20.596,7.28122241]
[1680459618753,20.396,20.608,20.596,7.28122241]
[1680459618949,3.396,20.608,20.596,7.28122241]
[1680459619144,20.396,20.608,20.596,7.28122241]
[1680459622567,20.396,20.608,20.594,112.5252]
[1680459622869,10.0,20.607,20.595,20.0]
[1680459623075,10.0,20.605,20.595,20.0]
[1680459623366,10.0,20.603,20.595,20.0]
[1680459624671,9.92335583,20.603,20.595,20.0]
[1680459625259,10.0,20.601,20.595,20.0]
[1680459625461,17.0,20.6,20.595,20.0]
[1680459625854,17.0,20.6,20.593,20.0]
[1680459628779,9.92335583,20.603,20.593,77.08334887]
[1680459629080,10.0,20.601,20.593,77.08334887]
[1680459631973,17.0,20.602,20.593,84.36457128]
[1680459633960,10.0,20.603,20.593,84.36457128]
[1680459634159,17.0,20.602,20.593,84.36457128]
[1680459639470,17.0,20.602,20.593,77.08334887]
[1680459639653,10.0,20.601,20.593,77.08334887]
[1680459639853,10.0,20.599,20.593,77.08334887]
[1680459640071,17.0,20.598,20.593,77.08334887]
[1680459641458,19.415462,20.619,20.593,77.08334887]
[1680459641770,10.0,20.603,20.593,84.36457128]
[1680459641965,10.0,20.601,20.593,84.36457128]
[1680459642370,10.0,20.603,20.593,84.36457128]
[1680459642672,10.0,20.601,20.593,84.36457128]
[1680459643276,10.0,20.603,20.593,84.36457128]
[1680459643478,10.0,20.601,20.593,84.36457128]
[1680459643985,10.0,20.603,20.593,84.36457128]
[1680459644187,10.0,20.601,20.593,84.36457128]
[1680459644685,10.0,20.603,20.593,84.36457128]
[1680459644864,10.0,20.601,20.593,84.36457128]
[1680459646076,17.0,20.602,20.593,84.36457128]
[1680459647469,10.0,20.603,20.593,84.36457128]
[1680459647671,10.0,20.601,20.593,84.36457128]
[1680459647872,10.0,20.603,20.593,84.36457128]
[1680459649285,17.0,20.604,20.593,84.36457128]
[1680459650588,10.0,20.605,20.593,84.36457128]
[1680459650765,10.0,20.603,20.593,199.14497128]
[1680459651585,17.0,20.604,20.593,199.14497128]
[1680459654374,10.0,20.605,20.593,199.14497128]
[1680459654576,14.07122241,20.617,20.593,199.14497128]
[1680459654787,10.0,20.605,20.593,199.14497128]
[1680459657669,14.07122241,20.617,20.593,199.14497128]
[1680459657869,24.89337871,20.61,20.593,199.14497128]
[1680459659499,24.89337871,20.61,20.595,10.0]
[1680459659879,24.89337871,20.61,20.595,17.28122241]
[1680459662190,24.89337871,20.61,20.595,7.28122241]
[1680459664391,14.07122241,20.617,20.596,17.0]
[1680459664685,14.07122241,20.617,20.6,22.42]
[1680459666893,16.79,20.617,20.6,22.42]
[1680459670396,16.79,20.617,20.596,7.28122241]
[1680459673494,16.79,20.617,20.596,64.36457128]
[1680459677605,16.79,20.617,20.6,22.43]
[1680459698009,16.79,20.617,20.596,7.28122241]
[1680459698425,16.79,20.617,20.593,149.12545679]
[1680459698628,16.79,20.617,20.595,10.0]
[1680459698809,16.79,20.617,20.594,7.28122241]
[1680459699005,16.79,20.617,20.595,20.0]
[1680459702025,10.0,20.609,20.595,20.0]
[1680459702327,27.0,20.609,20.595,20.0]
[1680459702523,20.396,20.608,20.595,20.0]
[1680459706126,20.396,20.608,20.595,77.08334887]
[1680459715623,10.0,20.607,20.595,84.36457128]
[1680459715823,10.0,20.605,20.595,84.36457128]
[1680459716622,10.0,20.603,20.595,84.36457128]
[1680459717017,10.0,20.605,20.595,84.36457128]
[1680459717224,10.0,20.603,20.595,84.36457128]
[1680459717419,10.0,20.605,20.595,84.36457128]
[1680459717628,10.0,20.603,20.595,84.36457128]
[1680459717939,10.0,20.605,20.595,84.36457128]
[1680459718150,10.0,20.603,20.595,84.36457128]
[1680459719452,10.0,20.605,20.595,84.36457128]
[1680459719630,10.0,20.603,20.595,84.36457128]
[1680459719834,10.0,20.605,20.595,84.36457128]
[1680459720134,10.0,20.603,20.595,84.36457128]
[1680459720333,10.0,20.605,20.595,84.36457128]
[1680459720638,17.0,20.604,20.595,84.36457128]
[1680459720840,17.0,20.604,20.595,77.08334887]
[1680459721040,10.0,20.607,20.595,77.08334887]
[1680459721241,27.52747235,20.62,20.595,84.36457128]
[1680459721433,20.396,20.608,20.595,130.53806569]
[1680459727246,3.396,20.608,20.595,130.53806569]
[1680459727454,3.396,20.608,20.597,10.0]
[1680459731257,3.396,20.608,20.597,67.08334887]
[1680459731949,3.396,20.608,20.597,57.08334887]
[1680459732249,3.396,20.608,20.6,22.42]
[1680459742557,3.396,20.608,20.595,41.90997961]
[1680459743059,3.396,20.608,20.595,27.28122241]
[1680459744162,3.396,20.608,20.595,20.0]
[1680459744362,3.396,20.608,20.595,10.0]
[1680459748267,3.396,20.608,20.594,30.0]
[1680459748946,3.396,20.608,20.594,20.0]
[1680459751463,3.396,20.608,20.594,27.28122241]
[1680459751663,10.0,20.607,20.594,27.28122241]
[1680459751858,17.0,20.606,20.594,27.28122241]
[1680459752060,10.0,20.605,20.594,27.28122241]
[1680459752259,10.0,20.603,20.594,27.28122241]
[1680459752866,10.0,20.605,20.594,84.36457128]
[1680459753066,10.0,20.603,20.594,84.36457128]
[1680459753652,17.0,20.604,20.594,84.36457128]
[1680459756451,10.0,20.605,20.594,84.36457128]
[1680459756655,10.0,20.603,20.594,84.36457128]
[1680459756856,17.0,20.602,20.594,84.36457128]
[1680459758769,10.0,20.603,20.594,84.36457128]
[1680459758971,17.0,20.602,20.594,84.36457128]
[1680459760671,10.0,20.603,20.594,84.36457128]
[1680459760862,17.0,20.602,20.594,84.36457128]
[1680459761675,10.0,20.607,20.594,84.36457128]
[1680459762972,10.0,20.605,20.594,84.36457128]
[1680459763467,17.0,20.606,20.594,84.36457128]
[1680459766473,10.0,20.607,20.594,84.36457128]
[1680459770276,3.396,20.608,20.594,84.36457128]
[1680459771975,20.396,20.608,20.594,84.36457128]
[1680459772159,20.396,20.608,20.6,22.44]
[1680459772671,3.396,20.608,20.6,22.44]
[1680459784588,3.396,20.608,20.595,10.0]
[1680459784793,3.396,20.608,20.594,98.8556008]
[1680459784991,3.396,20.608,20.596,10.0]
[1680459785577,10.0,20.607,20.595,7.28122241]
[1680459785777,10.0,20.605,20.595,7.28122241]
[1680459785976,17.0,20.604,20.595,7.28122241]
[1680459786195,10.0,20.603,20.595,7.28122241]
[1680459786389,17.0,20.602,20.595,7.28122241]
[1680459794900,17.0,20.602,20.594,77.08334887]
[1680459799096,10.0,20.605,20.594,77.08334887]
[1680459799097,10.0,20.603,20.594,77.08334887]
[1680459799306,10.0,20.601,20.594,77.08334887]
[1680459800208,17.0,20.602,20.594,77.08334887]
[1680459812825,10.0,20.605,20.594,77.08334887]
[1680459813009,10.0,20.607,20.594,84.36457128]
[1680459813213,10.0,20.605,20.594,84.36457128]
[1680459813412,17.0,20.604,20.594,84.36457128]
[1680459817437,10.0,20.603,20.594,20.0]
[1680459817623,10.0,20.601,20.593,20.0]
[1680459819931,10.0,20.603,20.593,20.0]
[1680459820130,10.0,20.601,20.593,20.0]
[1680459824340,10.0,20.603,20.593,20.0]
[1680459824521,10.0,20.601,20.593,20.0]
[1680459824839,10.0,20.599,20.593,20.0]
[1680459825221,17.0,20.598,20.593,20.0]
[1680459826544,17.0,20.598,20.59,22.24]
[1680459827040,10.0,20.597,20.586,19.416886]
[1680459827236,10.0,20.595,20.586,19.416886]
[1680459827638,17.0,20.594,20.586,19.416886]
[1680459832736,10.0,20.595,20.586,19.416886]
[1680459832930,17.0,20.594,20.586,19.416886]
[1680459837733,17.0,20.594,20.584,175.81237165]
[1680459837935,17.0,20.594,20.585,20.0]
[1680459841653,17.0,20.594,20.585,27.28122241]
[1680459843155,10.0,20.595,20.585,27.28122241]
[1680459843339,10.0,20.593,20.585,27.28122241]
[1680459843540,10.0,20.591,20.585,27.28122241]
[1680459844248,10.0,20.593,20.585,27.28122241]
[1680459844444,10.0,20.591,20.585,27.28122241]
[1680459845357,17.0,20.59,20.585,27.28122241]
[1680459847457,17.0,20.592,20.585,27.28122241]
[1680459847853,10.0,20.591,20.585,20.0]
[1680459848146,10.0,20.589,20.585,20.0]
[1680459848744,10.0,20.591,20.585,20.0]
[1680459848947,10.0,20.589,20.585,20.0]
[1680459850459,10.0,20.589,20.58,87.83637741]
[1680459850754,10.0,20.589,20.58,41.742883]
[1680459850755,10.0,20.587,20.58,41.742883]
[1680459854857,10.0,20.589,20.58,41.742883]